Workbook

Sheet Read Me
A1: Please Note:
A2: This Calculator is applicable only for Azure to Azure scenario using Managed Disks in Azure Site Recovery and its estimates are for directionary purposes and do not reflect the exact costs. US Dollar ($) has been used as the currency across this workbook.
A3: The workbook contains two sheets named as: 1) A2A (East US to West US) 2) A2A (DIY)
A5: Steps to use the A2A (East US to West US): 1) This sample sheet has source region as East US and target region as West US by default. 2) All the fields which require inputs are coloured. 3) The input fields are to be filled as per the user requirements of their cloud infrastructure. 4) The fees fields are automated and will fetch the correct data automatically.
A7: Steps to use the A2A (DIY): 1) This sheet requires all the inputs from the user and can be used to calculate for any regions. 2) All the fields which require inputs are coloured. 3) The input fields are to be filled as per the user requirements of their cloud infrastructure. 4) All the fees required have been provided with the reference link which should be used to verify the cost and input accordingly.
A9: There are additional costs for Test Failover, Failover and Resync which are not calculated as part of this calculator. Prices are estimates only. Actual prices may vary.
A11: In case of any queries, reach out to askasr@microsoft.com

Sheet A2A (East US to West US)
A1: Input Variables
A2: Variable | B2: Value | C2: Description | H2: Source Location | I2: Target Location
B3: Workload Characteristics | H3: East US | I3: West US
A4: Total Number of VMs | B4: 1 | C4: Each VM protected with ASR has a Protected Instance fee
A5: Protected Instance Fee | B5: 25 | C5: Charged for ASR services per protected instance
A6: Total Number of Data Disks in Source | B6: 1 | C6: Count of total data disks attached to given number of source VMs
A7: Average Size of Each Data Disk in GiB | B7: 1 | C7: Average provisioned size of each source data disk which is protected using ASR | H7: Fields in this colour require inputs from user
A8: Average percentage Data Disk filled | B8: 1 | C8: Average percent of the data disk that is filled at the time of protecting with ASR | H8: This sheet contains all the datapoints for Source East US and Target West US. Only input datapoints for required variables.
A9: Average Size of Each OS Disk in GiB | B9: 1 | C9: Size of the Source VM OS Disk. We are assuming OS Data disks are 100% full.
A10: Type of Source Managed Disks | B10: Standard HDD Managed Disks | C10: Premium SSDv2 / Premium SSD / Standard HDD / Standard SDD
A11: Type of Target Replica Disks | B11: Standard HDD Managed Disks | C11: Premium SSD / Standard HDD / Standard SDD
A12: Total Cost of single Replica DataDisk in Target region | B12: =IF( TargetReplicaDiskType="Premium SSD Managed Disks", IFERROR(INDEX('WESTUS DISKS'!C2:C15, MATCH(MIN(IF('WESTUS DISKS'!B2:B15>=B7, 'WESTUS DISKS'!B2:B15)), 'WESTUS DISKS'!B2:B15, 0)), "No Match Found"), IF( TargetReplicaDiskType="Standard HDD Managed Disks", IFERROR(INDEX('WESTUS DISKS'!J2:J12, MATCH(MIN(IF('WESTUS DISKS'!I2:I12>=B7, 'WESTUS DISKS'!I2:I12)), 'WESTUS DISKS'!I2:I12, 0)), "No Match Found"), IF( TargetReplicaDiskType="Standard SSD Managed Disks", IFERROR(INDEX('WESTUS DISKS'!Q2:Q15, MATCH(MIN(IF('WESTUS DISKS'!P2:P15>=B7, 'WESTUS DISKS'!P2:P15)), 'WESTUS DISKS'!P2:P15, 0)), "No Match Found"), "Invalid Disk Type" ) ) ) -> 1.54 | C12: ASR replicates the source data disks to the target, charging for the provisioned disk size based on the target region's disk price. For Standard disks at the source, Standard pricing applies at the target. For Premium SSD or Premium SSDv2 disks, Premium V1 pricing applies at the target.
A13: Total Cost of single Replica OS Disk in Target region | B13: =INDEX('WESTUS DISKS'!C2:C15, MATCH(MIN(IF('WESTUS DISKS'!B2:B15 >= B9, 'WESTUS DISKS'!B2:B15)),'WESTUS DISKS'!B2:B15, 0)) -> 0.78 | C13: For ease of calculation, we are assuming the OS disk is always Premium SSD. For different inputs please use the A2A (DIY) sheet.
A14: Expected Daily Churn Rate in GB/day per VM in Source region | B14: 1 | C14: The amount of new write data change in a day on the VM. We are assuming any new data churn will always be on a new block. | BA14: Premium Blobs | BB14: Standard General Purpose v2 (SGPV2)
A15: Churn Type | B15: Normal Churn | C15: The type of Churn selected decides whether standard or premium cache storage account is used | BB15: Standard General Purpose v1 (SGPV1)
A16: Type of Cache Storage Account used | B16: Standard General Purpose v2 (SGPV2) | C16: If the churn type is High Churn, ASR uses Premium Blobs. If the churn type is Normal Churn, ASR uses Standard General Purpose blob storage.
A17: Source Location Standard Page Blob Snapshot Fee (per GB/Month) | B17: 0.045 | C17: Used as snapshot in Standard SDD Disks
A18: Source location Premium Page Blob Snapshot Fee (per GB/Month) | B18: 0.12 | C18: Used as snapshot in Premium SSD and Premium SSDv2 disks
A19: Target Location Page Blob Snapshot Fee (per GB/Month) | B19: 0.045 | C19: Used as snapshot in Standard SDD Disks
A20: Target Location Page Blob Snapshot Fee (per GB/Month) | B20: 0.132 | C20: Used as snapshot in Premium SSD and Premium SSDv2 disks
A21: Retention Days | B21: 0 | C21: No of days the Recovery Points are available between 0 to 15days
A22: Per gb Network Egress Cost at Source location | B22: 0.02 | C22: When replicating an Azure virtual machine from one region to another region outbound data transfer charges apply. There is no egress charges when data is transferred between availability zones in the same region. Compression factor is 0.5.
A23: Total Capacity Reservation Cost associated with ASR per month (Optional) | B23: 0 | C23: Enter the on-demand capacity reservation cost. On-demand capacity reservation enables you to reserve compute capacity in target Azure region or an availability zone for any duration of time.
A26: Cost Components of A2A ASR | B26: Cost of 1st month | C26: Cost of 2nd month | D26: Cost at 3rd month | E26: Cost at 4th month | F26: Cost at 5th month | G26: Cost at 6th month | H26: Cost at 7th month | I26: Cost at 8th month | J26: Cost at 9th month | K26: Cost at 10th month | L26: Cost at 11th month | M26: Cost at 12th month
A27: Total Protected Instance Fee | B27: =0 -> 0 | C27: =B4*B5 -> 25 | D27: =B4*B5 -> 25 | E27: =B4*B5 -> 25 | F27: =B4*B5 -> 25 | G27: =B4*B5 -> 25 | H27: =B4*B5 -> 25 | I27: =B4*B5 -> 25 | J27: =B4*B5 -> 25 | K27: =B4*B5 -> 25 | L27: =B4*B5 -> 25 | M27: =B4*B5 -> 25
A28: ASR Source Snapshot Fee | B28: =_xlfn.IFS(DiskType="Premium SSD Managed Disks",B18*12*(ChurnRatePerDay/24),DiskType="Standard HDD Managed Disks",B17*12*(ChurnRatePerDay/24),DiskType="Standard HDD Managed Disks",B17*12*(ChurnRatePerDay/24),DiskType="Premium SSDv2 Managed Disks",B18*(B7*B6*B8)) -> 0.0225 | C28: =_xlfn.IFS(DiskType="Premium SSD Managed Disks",B18*12*(ChurnRatePerDay/24),DiskType="Standard HDD Managed Disks",B17*12*(ChurnRatePerDay/24),DiskType="Standard HDD Managed Disks",B17*12*(ChurnRatePerDay/24),DiskType="Premium SSDv2 Managed Disks",B18*11*(ChurnRatePerDay/24)+B28) -> 0.0225 | D28: =_xlfn.IFS(DiskType="Premium SSD Managed Disks",B18*12*(ChurnRatePerDay/24),DiskType="Standard HDD Managed Disks",B17*12*(ChurnRatePerDay/24),DiskType="Standard HDD Managed Disks",B17*12*(ChurnRatePerDay/24),DiskType="Premium SSDv2 Managed Disks",B18*11*(ChurnRatePerDay/24)+C28) -> 0.0225 | E28: =_xlfn.IFS(DiskType="Premium SSD Managed Disks",B18*12*(ChurnRatePerDay/24),DiskType="Standard HDD Managed Disks",B17*12*(ChurnRatePerDay/24),DiskType="Standard HDD Managed Disks",B17*12*(ChurnRatePerDay/24),DiskType="Premium SSDv2 Managed Disks",B18*11*(ChurnRatePerDay/24)+D28) -> 0.0225 | F28: =_xlfn.IFS(DiskType="Premium SSD Managed Disks",B18*12*(ChurnRatePerDay/24),DiskType="Standard HDD Managed Disks",B17*12*(ChurnRatePerDay/24),DiskType="Standard HDD Managed Disks",B17*12*(ChurnRatePerDay/24),DiskType="Premium SSDv2 Managed Disks",B18*11*(ChurnRatePerDay/24)+E28) -> 0.0225 | G28: =_xlfn.IFS(DiskType="Premium SSD Managed Disks",B18*12*(ChurnRatePerDay/24),DiskType="Standard HDD Managed Disks",B17*12*(ChurnRatePerDay/24),DiskType="Standard HDD Managed Disks",B17*12*(ChurnRatePerDay/24),DiskType="Premium SSDv2 Managed Disks",B18*11*(ChurnRatePerDay/24)+F28) -> 0.0225 | H28: =_xlfn.IFS(DiskType="Premium SSD Managed Disks",B18*12*(ChurnRatePerDay/24),DiskType="Standard HDD Managed Disks",B17*12*(ChurnRatePerDay/24),DiskType="Standard HDD Managed Disks",B17*12*(ChurnRatePerDay/24),DiskType="Premium SSDv2 Managed Disks",B18*11*(ChurnRatePerDay/24)+G28) -> 0.0225 | I28: =_xlfn.IFS(DiskType="Premium SSD Managed Disks",B18*12*(ChurnRatePerDay/24),DiskType="Standard HDD Managed Disks",B17*12*(ChurnRatePerDay/24),DiskType="Standard HDD Managed Disks",B17*12*(ChurnRatePerDay/24),DiskType="Premium SSDv2 Managed Disks",B18*11*(ChurnRatePerDay/24)+H28) -> 0.0225 | J28: =_xlfn.IFS(DiskType="Premium SSD Managed Disks",B18*12*(ChurnRatePerDay/24),DiskType="Standard HDD Managed Disks",B17*12*(ChurnRatePerDay/24),DiskType="Standard HDD Managed Disks",B17*12*(ChurnRatePerDay/24),DiskType="Premium SSDv2 Managed Disks",B18*11*(ChurnRatePerDay/24)+I28) -> 0.0225 | K28: =_xlfn.IFS(DiskType="Premium SSD Managed Disks",B18*12*(ChurnRatePerDay/24),DiskType="Standard HDD Managed Disks",B17*12*(ChurnRatePerDay/24),DiskType="Standard HDD Managed Disks",B17*12*(ChurnRatePerDay/24),DiskType="Premium SSDv2 Managed Disks",B18*11*(ChurnRatePerDay/24)+J28) -> 0.0225 | L28: =_xlfn.IFS(DiskType="Premium SSD Managed Disks",B18*12*(ChurnRatePerDay/24),DiskType="Standard HDD Managed Disks",B17*12*(ChurnRatePerDay/24),DiskType="Standard HDD Managed Disks",B17*12*(ChurnRatePerDay/24),DiskType="Premium SSDv2 Managed Disks",B18*11*(ChurnRatePerDay/24)+K28) -> 0.0225 | M28: =_xlfn.IFS(DiskType="Premium SSD Managed Disks",B18*12*(ChurnRatePerDay/24),DiskType="Standard HDD Managed Disks",B17*12*(ChurnRatePerDay/24),DiskType="Standard HDD Managed Disks",B17*12*(ChurnRatePerDay/24),DiskType="Premium SSDv2 Managed Disks",B18*11*(ChurnRatePerDay/24)+L28) -> 0.0225
A29: ASR Target Snapshot Fee | B29: =IF('A2A (East US to West US)'!B11="Premium SSD Managed disks", INDEX('A2A Retention Days'!C:C, MATCH('A2A (East US to West US)'!B21, 'A2A Retention Days'!A:A, 0)), IF(OR('A2A (East US to West US)'!B11="Standard HDD Managed Disks", 'A2A (East US to West US)'!B11="Standard SSD Managed Disks"), INDEX('A2A Retention Days'!B:B, MATCH('A2A (East US to West US)'!B21, 'A2A Retention Days'!A:A, 0)), "")) -> 0 | C29: =IF('A2A (East US to West US)'!B11="Premium SSD Managed disks", INDEX('A2A Retention Days'!C:C, MATCH('A2A (East US to West US)'!B21, 'A2A Retention Days'!A:A, 0)), IF(OR('A2A (East US to West US)'!B11="Standard HDD Managed Disks", 'A2A (East US to West US)'!B11="Standard SSD Managed Disks"), INDEX('A2A Retention Days'!B:B, MATCH('A2A (East US to West US)'!B21, 'A2A Retention Days'!A:A, 0)), "")) -> 0 | D29: =IF('A2A (East US to West US)'!B11="Premium SSD Managed disks", INDEX('A2A Retention Days'!C:C, MATCH('A2A (East US to West US)'!B21, 'A2A Retention Days'!A:A, 0)), IF(OR('A2A (East US to West US)'!B11="Standard HDD Managed Disks", 'A2A (East US to West US)'!B11="Standard SSD Managed Disks"), INDEX('A2A Retention Days'!B:B, MATCH('A2A (East US to West US)'!B21, 'A2A Retention Days'!A:A, 0)), "")) -> 0 | E29: =IF('A2A (East US to West US)'!B11="Premium SSD Managed disks", INDEX('A2A Retention Days'!C:C, MATCH('A2A (East US to West US)'!B21, 'A2A Retention Days'!A:A, 0)), IF(OR('A2A (East US to West US)'!B11="Standard HDD Managed Disks", 'A2A (East US to West US)'!B11="Standard SSD Managed Disks"), INDEX('A2A Retention Days'!B:B, MATCH('A2A (East US to West US)'!B21, 'A2A Retention Days'!A:A, 0)), "")) -> 0 | F29: =IF('A2A (East US to West US)'!B11="Premium SSD Managed disks", INDEX('A2A Retention Days'!C:C, MATCH('A2A (East US to West US)'!B21, 'A2A Retention Days'!A:A, 0)), IF(OR('A2A (East US to West US)'!B11="Standard HDD Managed Disks", 'A2A (East US to West US)'!B11="Standard SSD Managed Disks"), INDEX('A2A Retention Days'!B:B, MATCH('A2A (East US to West US)'!B21, 'A2A Retention Days'!A:A, 0)), "")) -> 0 | G29: =IF('A2A (East US to West US)'!B11="Premium SSD Managed disks", INDEX('A2A Retention Days'!C:C, MATCH('A2A (East US to West US)'!B21, 'A2A Retention Days'!A:A, 0)), IF(OR('A2A (East US to West US)'!B11="Standard HDD Managed Disks", 'A2A (East US to West US)'!B11="Standard SSD Managed Disks"), INDEX('A2A Retention Days'!B:B, MATCH('A2A (East US to West US)'!B21, 'A2A Retention Days'!A:A, 0)), "")) -> 0 | H29: =IF('A2A (East US to West US)'!B11="Premium SSD Managed disks", INDEX('A2A Retention Days'!C:C, MATCH('A2A (East US to West US)'!B21, 'A2A Retention Days'!A:A, 0)), IF(OR('A2A (East US to West US)'!B11="Standard HDD Managed Disks", 'A2A (East US to West US)'!B11="Standard SSD Managed Disks"), INDEX('A2A Retention Days'!B:B, MATCH('A2A (East US to West US)'!B21, 'A2A Retention Days'!A:A, 0)), "")) -> 0 | I29: =IF('A2A (East US to West US)'!B11="Premium SSD Managed disks", INDEX('A2A Retention Days'!C:C, MATCH('A2A (East US to West US)'!B21, 'A2A Retention Days'!A:A, 0)), IF(OR('A2A (East US to West US)'!B11="Standard HDD Managed Disks", 'A2A (East US to West US)'!B11="Standard SSD Managed Disks"), INDEX('A2A Retention Days'!B:B, MATCH('A2A (East US to West US)'!B21, 'A2A Retention Days'!A:A, 0)), "")) -> 0 | J29: =IF('A2A (East US to West US)'!B11="Premium SSD Managed disks", INDEX('A2A Retention Days'!C:C, MATCH('A2A (East US to West US)'!B21, 'A2A Retention Days'!A:A, 0)), IF(OR('A2A (East US to West US)'!B11="Standard HDD Managed Disks", 'A2A (East US to West US)'!B11="Standard SSD Managed Disks"), INDEX('A2A Retention Days'!B:B, MATCH('A2A (East US to West US)'!B21, 'A2A Retention Days'!A:A, 0)), "")) -> 0 | K29: =IF('A2A (East US to West US)'!B11="Premium SSD Managed disks", INDEX('A2A Retention Days'!C:C, MATCH('A2A (East US to West US)'!B21, 'A2A Retention Days'!A:A, 0)), IF(OR('A2A (East US to West US)'!B11="Standard HDD Managed Disks", 'A2A (East US to West US)'!B11="Standard SSD Managed Disks"), INDEX('A2A Retention Days'!B:B, MATCH('A2A (East US to West US)'!B21, 'A2A Retention Days'!A:A, 0)), "")) -> 0 | L29: =IF('A2A (East US to West US)'!B11="Premium SSD Managed disks", INDEX('A2A Retention Days'!C:C, MATCH('A2A (East US to West US)'!B21, 'A2A Retention Days'!A:A, 0)), IF(OR('A2A (East US to West US)'!B11="Standard HDD Managed Disks", 'A2A (East US to West US)'!B11="Standard SSD Managed Disks"), INDEX('A2A Retention Days'!B:B, MATCH('A2A (East US to West US)'!B21, 'A2A Retention Days'!A:A, 0)), "")) -> 0 | M29: =IF('A2A (East US to West US)'!B11="Premium SSD Managed disks", INDEX('A2A Retention Days'!C:C, MATCH('A2A (East US to West US)'!B21, 'A2A Retention Days'!A:A, 0)), IF(OR('A2A (East US to West US)'!B11="Standard HDD Managed Disks", 'A2A (East US to West US)'!B11="Standard SSD Managed Disks"), INDEX('A2A Retention Days'!B:B, MATCH('A2A (East US to West US)'!B21, 'A2A Retention Days'!A:A, 0)), "")) -> 0
A30: ASR Replica Disk | B30: =B12*B6+B13*B4 -> 2.32 | C30: =B12*B6+B13*B4 -> 2.32 | D30: =B12*B6+B13*B4 -> 2.32 | E30: =B12*B6+B13*B4 -> 2.32 | F30: =B12*B6+B13*B4 -> 2.32 | G30: =B12*B6+B13*B4 -> 2.32 | H30: =B12*B6+B13*B4 -> 2.32 | I30: =B12*B6+B13*B4 -> 2.32 | J30: =B12*B6+B13*B4 -> 2.32 | K30: =B12*B6+B13*B4 -> 2.32 | L30: =B12*B6+B13*B4 -> 2.32 | M30: =B12*B6+B13*B4 -> 2.32
A31: Egress (First month includes Intial Replication Cost) | B31: =(B22*((B7*B6*B8+B9*B4)+(ChurnRatePerDay*30)*0.5)) -> 0.34 | C31: =(B22*(ChurnRatePerDay*30)*0.5) -> 0.3 | D31: =(B22*(+ChurnRatePerDay*30)*0.5) -> 0.3 | E31: =(B22*(+ChurnRatePerDay*30)*0.5) -> 0.3 | F31: =(B22*(+ChurnRatePerDay*30)*0.5) -> 0.3 | G31: =(B22*(+ChurnRatePerDay*30)*0.5) -> 0.3 | H31: =(B22*(+ChurnRatePerDay*30)*0.5) -> 0.3 | I31: =(B22*(+ChurnRatePerDay*30)*0.5) -> 0.3 | J31: =(B22*(+ChurnRatePerDay*30)*0.5) -> 0.3 | K31: =(B22*(+ChurnRatePerDay*30)*0.5) -> 0.3 | L31: =(B22*(+ChurnRatePerDay*30)*0.5) -> 0.3 | M31: =(B22*(+ChurnRatePerDay*30)*0.5) -> 0.3
A32: Cache Storage Account | B32: =_xlfn.IFS(B16="Premium Blobs", 2.5*(ChurnRatePerDay*0.0124275674)*B6, B16="Standard General Purpose v2 (SGPv2)", 11.25*(ChurnRatePerDay*0.0124275674)*B6, B16="Standard General Purpose v1 (SGPv1)", 0.25*(ChurnRatePerDay*0.0124275674)*B6) -> 0.1398101332 | C32: =_xlfn.IFS(B16="Premium Blobs", 2.5*(ChurnRatePerDay*0.0124275674)*B6, B16="Standard General Purpose v2 (SGPv2)", 11.25*(ChurnRatePerDay*0.0124275674)*B6, B16="Standard General Purpose v1 (SGPv1)", 0.25*(ChurnRatePerDay*0.0124275674)*B6) -> 0.1398101332 | D32: =_xlfn.IFS(B16="Premium Blobs", 2.5*(ChurnRatePerDay*0.0124275674)*B6, B16="Standard General Purpose v2 (SGPv2)", 11.25*(ChurnRatePerDay*0.0124275674)*B6, B16="Standard General Purpose v1 (SGPv1)", 0.25*(ChurnRatePerDay*0.0124275674)*B6) -> 0.1398101332 | E32: =_xlfn.IFS(B16="Premium Blobs", 2.5*(ChurnRatePerDay*0.0124275674)*B6, B16="Standard General Purpose v2 (SGPv2)", 11.25*(ChurnRatePerDay*0.0124275674)*B6, B16="Standard General Purpose v1 (SGPv1)", 0.25*(ChurnRatePerDay*0.0124275674)*B6) -> 0.1398101332 | F32: =_xlfn.IFS(B16="Premium Blobs", 2.5*(ChurnRatePerDay*0.0124275674)*B6, B16="Standard General Purpose v2 (SGPv2)", 11.25*(ChurnRatePerDay*0.0124275674)*B6, B16="Standard General Purpose v1 (SGPv1)", 0.25*(ChurnRatePerDay*0.0124275674)*B6) -> 0.1398101332 | G32: =_xlfn.IFS(B16="Premium Blobs", 2.5*(ChurnRatePerDay*0.0124275674)*B6, B16="Standard General Purpose v2 (SGPv2)", 11.25*(ChurnRatePerDay*0.0124275674)*B6, B16="Standard General Purpose v1 (SGPv1)", 0.25*(ChurnRatePerDay*0.0124275674)*B6) -> 0.1398101332 | H32: =_xlfn.IFS(B16="Premium Blobs", 2.5*(ChurnRatePerDay*0.0124275674)*B6, B16="Standard General Purpose v2 (SGPv2)", 11.25*(ChurnRatePerDay*0.0124275674)*B6, B16="Standard General Purpose v1 (SGPv1)", 0.25*(ChurnRatePerDay*0.0124275674)*B6) -> 0.1398101332 | I32: =_xlfn.IFS(B16="Premium Blobs", 2.5*(ChurnRatePerDay*0.0124275674)*B6, B16="Standard General Purpose v2 (SGPv2)", 11.25*(ChurnRatePerDay*0.0124275674)*B6, B16="Standard General Purpose v1 (SGPv1)", 0.25*(ChurnRatePerDay*0.0124275674)*B6) -> 0.1398101332 | J32: =_xlfn.IFS(B16="Premium Blobs", 2.5*(ChurnRatePerDay*0.0124275674)*B6, B16="Standard General Purpose v2 (SGPv2)", 11.25*(ChurnRatePerDay*0.0124275674)*B6, B16="Standard General Purpose v1 (SGPv1)", 0.25*(ChurnRatePerDay*0.0124275674)*B6) -> 0.1398101332 | K32: =_xlfn.IFS(B16="Premium Blobs", 2.5*(ChurnRatePerDay*0.0124275674)*B6, B16="Standard General Purpose v2 (SGPv2)", 11.25*(ChurnRatePerDay*0.0124275674)*B6, B16="Standard General Purpose v1 (SGPv1)", 0.25*(ChurnRatePerDay*0.0124275674)*B6) -> 0.1398101332 | L32: =_xlfn.IFS(B16="Premium Blobs", 2.5*(ChurnRatePerDay*0.0124275674)*B6, B16="Standard General Purpose v2 (SGPv2)", 11.25*(ChurnRatePerDay*0.0124275674)*B6, B16="Standard General Purpose v1 (SGPv1)", 0.25*(ChurnRatePerDay*0.0124275674)*B6) -> 0.1398101332 | M32: =_xlfn.IFS(B16="Premium Blobs", 2.5*(ChurnRatePerDay*0.0124275674)*B6, B16="Standard General Purpose v2 (SGPv2)", 11.25*(ChurnRatePerDay*0.0124275674)*B6, B16="Standard General Purpose v1 (SGPv1)", 0.25*(ChurnRatePerDay*0.0124275674)*B6) -> 0.1398101332
A33: Temporary Source Disk (Charged only during Initial Replication) | B33: =IF(OR(B10="Standard HDD Managed Disks",B10="Standard SSD Managed Disks",B10="Premium SSD Managed Disks"),(((B7*B6+B9*B4)/1000)*6)*(B12*B6)/(30*24),"") -> 2.566666667e-05
A34: Capacity Reservation | B34: =$B$23 -> 0 | C34: =$B$23 -> 0 | D34: 0 | E34: 0 | F34: 0 | G34: 0 | H34: 0 | I34: 0 | J34: 0 | K34: 0 | L34: 0 | M34: 0
A35: Total Cost | B35: =SUM(B$27:B$34) -> 2.8223358 | C35: =SUM(C$27:C$34) -> 27.78231013 | D35: 27.78231013 | E35: 27.78231013 | F35: 27.78231013 | G35: 27.78231013 | H35: 27.78231013 | I35: 27.78231013 | J35: 27.78231013 | K35: 27.78231013 | L35: 27.78231013 | M35: 27.78231013

Sheet A2A (DIY)
A1: Input Variables
A2: Variable | B2: Value | C2: Description | F2: Link for Fee Details | H2: Source Location | I2: Target Location
B3: Workload Characteristics
A4: Total Number of VMs | B4: 0 | C4: Each VM protected with ASR has a Protected Instance fee
A5: Protected Instance Fee | B5: 0 | C5: Charged for ASR services per protected instance | F5: https://aka.ms/ASRProtectedInstanceFee
A6: Total Number of Data Disks in Source | B6: 0 | C6: Count of total data disks attached to given number of source VMs
A7: Average Size of Each Data Disk in GiB | B7: 0 | C7: Average provisioned size of each source data disk which is protected using ASR | H7: Fields in this colour require inputs from user
A8: Average percentage Data Disk filled | B8: 0 | C8: Average percent of the data disk that is filled at the time of protecting with ASR | H8: In this sheet you can try different inputs for the Variables as per different Source and Target Locations, and would require all the inputs from user
A9: Average Size of Each OS Data Disk in GiB | B9: 0 | C9: Size of the Source VM OS Disk. We are assuming OS Data disks are 100% full.
A10: Type of Source Managed Disks | B10: Standard HDD Managed Disks | C10: Premium SSDv2 / Premium SSD / Standard HDD / Standard SDD
A11: Type of Target Replica Disks | B11: Standard HDD Managed Disks | C11: Premium SSD / Standard HDD / Standard SDD
A12: Total Cost of single Replica Disk in Target region | B12: 0 | C12: ASR replicates the source data disks to the target, charging for the provisioned disk size based on the target region's disk price. For Standard disks at the source, Standard pricing applies at the target. For Premium V1 or V2 disks, Premium V1 pricing applies at the target. | F12: Pricing - Managed Disks | Microsoft Azure
A13: Total Cost of single Replica OS Disk in Target region | B13: 0 | C13: ASR replicates the source OS disks to the target, charging for the provisioned disk size based on the target region's disk price. | F13: Pricing - Managed Disks | Microsoft Azure
A14: Expected Daily Churn Rate in GB/day per VM in Source region | B14: 0 | C14: The amount of new write data change in a day on the VM | BA14: Premium Blobs | BB14: Standard General Purpose v2 (SGPv2)
A15: Churn Type | B15: Normal Churn | C15: The type of Churn selected decides whether standard or premium cache storage account is used | BB15: Standard General Purpose v1 (SGPv1)
A16: Type of Cache Storage Account used | B16: Standard General Purpose v2 (SGPv2) | C16: If the churn type is High Churn, ASR uses Premium Blobs. If the churn type is Normal Churn, ASR uses Standard General Purpose blob storage.
A17: Source Location Standard Page Blob Snapshot Fee (per GB/Month) | B17: 0.01 | C17: Used as snapshot in Standard SDD Disks. Select the Source Region and verify the snapshot fee for Standard LRS storage. | F17: Azure Page Blobs Storage Pricing | Microsoft Azure
A18: Source location Premium Page Blob Snapshot Fee (per GB/Month) | B18: 0.01 | C18: Used as snapshot in Pv1 and Pv2 disks. Select the Source Region and verify the snapshot fee for Premium Blob snapshot storage. | F18: Azure Page Blobs Storage Pricing | Microsoft Azure
A19: Target Location Page Blob Disk Snapshot Fee (per GB/Month) | B19: 0.01 | C19: Used as snapshot in Standard SDD Disks. Select the Target Region and verify the snapshot fee for Standard LRS storage. | F19: Azure Page Blobs Storage Pricing | Microsoft Azure
A20: Target Location Page Blob Disk Snapshot Fee (per GB/Month) | B20: 0.01 | C20: Used as snapshot in Pv1 and Pv2 disks. Select the Target Region and verify the snapshot fee for Premium Blob snapshot storage. | F20: Azure Page Blobs Storage Pricing | Microsoft Azure
A21: Retention Days | B21: 0 | C21: No of days the Recovery Points are available between 0 to 15days
A22: Per gb Network Egress Cost at Source location | B22: 0.01 | C22: When replicating an Azure virtual machine from one region to another region outbound data transfer charges apply. There is no egress charges when data is transferred between availability zones in the same region. | F22: Pricing - Bandwidth | Microsoft Azure
A23: Total Capacity Reservation Cost associated with ASR per month (Optional) | B23: 0 | C23: Enter the on-demand capacity reservation cost. On-demand capacity reservation enables you to reserve compute capacity in target Azure region or an availability zone for any duration of time.
A26: Cost Components of A2A ASR | B26: Cost of 1st month | C26: Cost of 2nd month | D26: Cost at 3rd month | E26: Cost at 4th month | F26: Cost at 5th month | G26: Cost at 6th month | H26: Cost at 7th month | I26: Cost at 8th month | J26: Cost at 9th month | K26: Cost at 10th month | L26: Cost at 11th month | M26: Cost at 12th month
A27: Total Protected Instance Fee | C27: =B4*B5 -> 0 | D27: =B4*B5 -> 0 | E27: =B4*B5 -> 0 | F27: =B4*B5 -> 0 | G27: =B4*B5 -> 0 | H27: =B4*B5 -> 0 | I27: =B4*B5 -> 0 | J27: =B4*B5 -> 0 | K27: =B4*B5 -> 0 | L27: =B4*B5 -> 0 | M27: =B4*B5 -> 0
A28: ASR Source Snapshot Fee | B28: =_xlfn.IFS(DiskType="Premium SSD Managed Disks",B18*12*(ChurnRatePerDay/24),DiskType="Standard HDD Managed Disks",B17*12*(ChurnRatePerDay/24),DiskType="Standard HDD Managed Disks",B17*12*(ChurnRatePerDay/24),DiskType="Premium SSDv2 Managed Disks",B18*(B7*B6*B8)) -> 0 | C28: =_xlfn.IFS(DiskType="Premium SSD Managed Disks",B18*12*(ChurnRatePerDay/24),DiskType="Standard HDD Managed Disks",B17*12*(ChurnRatePerDay/24),DiskType="Standard HDD Managed Disks",B17*12*(ChurnRatePerDay/24),DiskType="Premium SSDv2 Managed Disks",B18*11*(ChurnRatePerDay/24)+B28) -> 0 | D28: =_xlfn.IFS(DiskType="Premium SSD Managed Disks",B18*12*(ChurnRatePerDay/24),DiskType="Standard HDD Managed Disks",B17*12*(ChurnRatePerDay/24),DiskType="Standard HDD Managed Disks",B17*12*(ChurnRatePerDay/24),DiskType="Premium SSDv2 Managed Disks",B18*11*(ChurnRatePerDay/24)+C28) -> 0 | E28: =_xlfn.IFS(DiskType="Premium SSD Managed Disks",B18*12*(ChurnRatePerDay/24),DiskType="Standard HDD Managed Disks",B17*12*(ChurnRatePerDay/24),DiskType="Standard HDD Managed Disks",B17*12*(ChurnRatePerDay/24),DiskType="Premium SSDv2 Managed Disks",B18*11*(ChurnRatePerDay/24)+D28) -> 0 | F28: =_xlfn.IFS(DiskType="Premium SSD Managed Disks",B18*12*(ChurnRatePerDay/24),DiskType="Standard HDD Managed Disks",B17*12*(ChurnRatePerDay/24),DiskType="Standard HDD Managed Disks",B17*12*(ChurnRatePerDay/24),DiskType="Premium SSDv2 Managed Disks",B18*11*(ChurnRatePerDay/24)+E28) -> 0 | G28: =_xlfn.IFS(DiskType="Premium SSD Managed Disks",B18*12*(ChurnRatePerDay/24),DiskType="Standard HDD Managed Disks",B17*12*(ChurnRatePerDay/24),DiskType="Standard HDD Managed Disks",B17*12*(ChurnRatePerDay/24),DiskType="Premium SSDv2 Managed Disks",B18*11*(ChurnRatePerDay/24)+F28) -> 0 | H28: =_xlfn.IFS(DiskType="Premium SSD Managed Disks",B18*12*(ChurnRatePerDay/24),DiskType="Standard HDD Managed Disks",B17*12*(ChurnRatePerDay/24),DiskType="Standard HDD Managed Disks",B17*12*(ChurnRatePerDay/24),DiskType="Premium SSDv2 Managed Disks",B18*11*(ChurnRatePerDay/24)+G28) -> 0 | I28: =_xlfn.IFS(DiskType="Premium SSD Managed Disks",B18*12*(ChurnRatePerDay/24),DiskType="Standard HDD Managed Disks",B17*12*(ChurnRatePerDay/24),DiskType="Standard HDD Managed Disks",B17*12*(ChurnRatePerDay/24),DiskType="Premium SSDv2 Managed Disks",B18*11*(ChurnRatePerDay/24)+H28) -> 0 | J28: =_xlfn.IFS(DiskType="Premium SSD Managed Disks",B18*12*(ChurnRatePerDay/24),DiskType="Standard HDD Managed Disks",B17*12*(ChurnRatePerDay/24),DiskType="Standard HDD Managed Disks",B17*12*(ChurnRatePerDay/24),DiskType="Premium SSDv2 Managed Disks",B18*11*(ChurnRatePerDay/24)+I28) -> 0 | K28: =_xlfn.IFS(DiskType="Premium SSD Managed Disks",B18*12*(ChurnRatePerDay/24),DiskType="Standard HDD Managed Disks",B17*12*(ChurnRatePerDay/24),DiskType="Standard HDD Managed Disks",B17*12*(ChurnRatePerDay/24),DiskType="Premium SSDv2 Managed Disks",B18*11*(ChurnRatePerDay/24)+J28) -> 0 | L28: =_xlfn.IFS(DiskType="Premium SSD Managed Disks",B18*12*(ChurnRatePerDay/24),DiskType="Standard HDD Managed Disks",B17*12*(ChurnRatePerDay/24),DiskType="Standard HDD Managed Disks",B17*12*(ChurnRatePerDay/24),DiskType="Premium SSDv2 Managed Disks",B18*11*(ChurnRatePerDay/24)+K28) -> 0 | M28: =_xlfn.IFS(DiskType="Premium SSD Managed Disks",B18*12*(ChurnRatePerDay/24),DiskType="Standard HDD Managed Disks",B17*12*(ChurnRatePerDay/24),DiskType="Standard HDD Managed Disks",B17*12*(ChurnRatePerDay/24),DiskType="Premium SSDv2 Managed Disks",B18*11*(ChurnRatePerDay/24)+L28) -> 0
A29: ASR Target Snapshot Fee | B29: =IF('A2A (DIY)'!B11="Premium SSD Managed disks", INDEX('A2A Retention Days'!C:C, MATCH('A2A (DIY)'!B21, 'A2A Retention Days'!A:A, 0)), IF(OR('A2A (DIY)'!B11="Standard HDD Managed Disks", 'A2A (DIY)'!B11="Standard SSD Managed Disks"), INDEX('A2A Retention Days'!B:B, MATCH('A2A (DIY)'!B21, 'A2A Retention Days'!A:A, 0)), "")) -> 0 | C29: =IF('A2A (DIY)'!B11="Premium SSD Managed disks", INDEX('A2A Retention Days'!C:C, MATCH('A2A (DIY)'!B21, 'A2A Retention Days'!A:A, 0)), IF(OR('A2A (DIY)'!B11="Standard HDD Managed Disks", 'A2A (DIY)'!B11="Standard SSD Managed Disks"), INDEX('A2A Retention Days'!B:B, MATCH('A2A (DIY)'!B21, 'A2A Retention Days'!A:A, 0)), "")) -> 0 | D29: =IF('A2A (DIY)'!B11="Premium SSD Managed disks", INDEX('A2A Retention Days'!C:C, MATCH('A2A (DIY)'!B21, 'A2A Retention Days'!A:A, 0)), IF(OR('A2A (DIY)'!B11="Standard HDD Managed Disks", 'A2A (DIY)'!B11="Standard SSD Managed Disks"), INDEX('A2A Retention Days'!B:B, MATCH('A2A (DIY)'!B21, 'A2A Retention Days'!A:A, 0)), "")) -> 0 | E29: =IF('A2A (DIY)'!B11="Premium SSD Managed disks", INDEX('A2A Retention Days'!C:C, MATCH('A2A (DIY)'!B21, 'A2A Retention Days'!A:A, 0)), IF(OR('A2A (DIY)'!B11="Standard HDD Managed Disks", 'A2A (DIY)'!B11="Standard SSD Managed Disks"), INDEX('A2A Retention Days'!B:B, MATCH('A2A (DIY)'!B21, 'A2A Retention Days'!A:A, 0)), "")) -> 0 | F29: =IF('A2A (DIY)'!B11="Premium SSD Managed disks", INDEX('A2A Retention Days'!C:C, MATCH('A2A (DIY)'!B21, 'A2A Retention Days'!A:A, 0)), IF(OR('A2A (DIY)'!B11="Standard HDD Managed Disks", 'A2A (DIY)'!B11="Standard SSD Managed Disks"), INDEX('A2A Retention Days'!B:B, MATCH('A2A (DIY)'!B21, 'A2A Retention Days'!A:A, 0)), "")) -> 0 | G29: =IF('A2A (DIY)'!B11="Premium SSD Managed disks", INDEX('A2A Retention Days'!C:C, MATCH('A2A (DIY)'!B21, 'A2A Retention Days'!A:A, 0)), IF(OR('A2A (DIY)'!B11="Standard HDD Managed Disks", 'A2A (DIY)'!B11="Standard SSD Managed Disks"), INDEX('A2A Retention Days'!B:B, MATCH('A2A (DIY)'!B21, 'A2A Retention Days'!A:A, 0)), "")) -> 0 | H29: =IF('A2A (DIY)'!B11="Premium SSD Managed disks", INDEX('A2A Retention Days'!C:C, MATCH('A2A (DIY)'!B21, 'A2A Retention Days'!A:A, 0)), IF(OR('A2A (DIY)'!B11="Standard HDD Managed Disks", 'A2A (DIY)'!B11="Standard SSD Managed Disks"), INDEX('A2A Retention Days'!B:B, MATCH('A2A (DIY)'!B21, 'A2A Retention Days'!A:A, 0)), "")) -> 0 | I29: =IF('A2A (DIY)'!B11="Premium SSD Managed disks", INDEX('A2A Retention Days'!C:C, MATCH('A2A (DIY)'!B21, 'A2A Retention Days'!A:A, 0)), IF(OR('A2A (DIY)'!B11="Standard HDD Managed Disks", 'A2A (DIY)'!B11="Standard SSD Managed Disks"), INDEX('A2A Retention Days'!B:B, MATCH('A2A (DIY)'!B21, 'A2A Retention Days'!A:A, 0)), "")) -> 0 | J29: =IF('A2A (DIY)'!B11="Premium SSD Managed disks", INDEX('A2A Retention Days'!C:C, MATCH('A2A (DIY)'!B21, 'A2A Retention Days'!A:A, 0)), IF(OR('A2A (DIY)'!B11="Standard HDD Managed Disks", 'A2A (DIY)'!B11="Standard SSD Managed Disks"), INDEX('A2A Retention Days'!B:B, MATCH('A2A (DIY)'!B21, 'A2A Retention Days'!A:A, 0)), "")) -> 0 | K29: =IF('A2A (DIY)'!B11="Premium SSD Managed disks", INDEX('A2A Retention Days'!C:C, MATCH('A2A (DIY)'!B21, 'A2A Retention Days'!A:A, 0)), IF(OR('A2A (DIY)'!B11="Standard HDD Managed Disks", 'A2A (DIY)'!B11="Standard SSD Managed Disks"), INDEX('A2A Retention Days'!B:B, MATCH('A2A (DIY)'!B21, 'A2A Retention Days'!A:A, 0)), "")) -> 0 | L29: =IF('A2A (DIY)'!B11="Premium SSD Managed disks", INDEX('A2A Retention Days'!C:C, MATCH('A2A (DIY)'!B21, 'A2A Retention Days'!A:A, 0)), IF(OR('A2A (DIY)'!B11="Standard HDD Managed Disks", 'A2A (DIY)'!B11="Standard SSD Managed Disks"), INDEX('A2A Retention Days'!B:B, MATCH('A2A (DIY)'!B21, 'A2A Retention Days'!A:A, 0)), "")) -> 0 | M29: =IF('A2A (DIY)'!B11="Premium SSD Managed disks", INDEX('A2A Retention Days'!C:C, MATCH('A2A (DIY)'!B21, 'A2A Retention Days'!A:A, 0)), IF(OR('A2A (DIY)'!B11="Standard HDD Managed Disks", 'A2A (DIY)'!B11="Standard SSD Managed Disks"), INDEX('A2A Retention Days'!B:B, MATCH('A2A (DIY)'!B21, 'A2A Retention Days'!A:A, 0)), "")) -> 0
A30: ASR Replica Disk | B30: =B12*B6+B13*B4 -> 0 | C30: =B12*B6+B13*B4 -> 0 | D30: =B12*B6+B13*B4 -> 0 | E30: =B12*B6+B13*B4 -> 0 | F30: =B12*B6+B13*B4 -> 0 | G30: =B12*B6+B13*B4 -> 0 | H30: =B12*B6+B13*B4 -> 0 | I30: =B12*B6+B13*B4 -> 0 | J30: =B12*B6+B13*B4 -> 0 | K30: =B12*B6+B13*B4 -> 0 | L30: =B12*B6+B13*B4 -> 0 | M30: =B12*B6+B13*B4 -> 0
A31: Egress (First month includes Intial Replication Cost) | B31: =(B22*((B7*B6*B8+B9*B4)+(ChurnRatePerDay*30)*0.5)) -> 0 | C31: =(B22*(ChurnRatePerDay*30)*0.5) -> 0 | D31: =(B22*(+ChurnRatePerDay*30)*0.5) -> 0 | E31: =(B22*(+ChurnRatePerDay*30)*0.5) -> 0 | F31: =(B22*(+ChurnRatePerDay*30)*0.5) -> 0 | G31: =(B22*(+ChurnRatePerDay*30)*0.5) -> 0 | H31: =(B22*(+ChurnRatePerDay*30)*0.5) -> 0 | I31: =(B22*(+ChurnRatePerDay*30)*0.5) -> 0 | J31: =(B22*(+ChurnRatePerDay*30)*0.5) -> 0 | K31: =(B22*(+ChurnRatePerDay*30)*0.5) -> 0 | L31: =(B22*(+ChurnRatePerDay*30)*0.5) -> 0 | M31: =(B22*(+ChurnRatePerDay*30)*0.5) -> 0
A32: Cache Storage Account | B32: =_xlfn.IFS(B16="Premium Blobs", 2.5*(ChurnRatePerDay*0.0124275674)*B6, B16="Standard General Purpose v2 (SGPv2)", 11.25*(ChurnRatePerDay*0.0124275674)*B6, B16="Standard General Purpose v1 (SGPv1)", 0.25*(ChurnRatePerDay*0.0124275674)*B6) -> 0 | C32: =_xlfn.IFS(B16="Premium Blobs", 2.5*(ChurnRatePerDay*0.0124275674)*B6, B16="Standard General Purpose v2 (SGPv2)", 11.25*(ChurnRatePerDay*0.0124275674)*B6, B16="Standard General Purpose v1 (SGPv1)", 0.25*(ChurnRatePerDay*0.0124275674)*B6) -> 0 | D32: =_xlfn.IFS(B16="Premium Blobs", 2.5*(ChurnRatePerDay*0.0124275674)*B6, B16="Standard General Purpose v2 (SGPv2)", 11.25*(ChurnRatePerDay*0.0124275674)*B6, B16="Standard General Purpose v1 (SGPv1)", 0.25*(ChurnRatePerDay*0.0124275674)*B6) -> 0 | E32: =_xlfn.IFS(B16="Premium Blobs", 2.5*(ChurnRatePerDay*0.0124275674)*B6, B16="Standard General Purpose v2 (SGPv2)", 11.25*(ChurnRatePerDay*0.0124275674)*B6, B16="Standard General Purpose v1 (SGPv1)", 0.25*(ChurnRatePerDay*0.0124275674)*B6) -> 0 | F32: =_xlfn.IFS(B16="Premium Blobs", 2.5*(ChurnRatePerDay*0.0124275674)*B6, B16="Standard General Purpose v2 (SGPv2)", 11.25*(ChurnRatePerDay*0.0124275674)*B6, B16="Standard General Purpose v1 (SGPv1)", 0.25*(ChurnRatePerDay*0.0124275674)*B6) -> 0 | G32: =_xlfn.IFS(B16="Premium Blobs", 2.5*(ChurnRatePerDay*0.0124275674)*B6, B16="Standard General Purpose v2 (SGPv2)", 11.25*(ChurnRatePerDay*0.0124275674)*B6, B16="Standard General Purpose v1 (SGPv1)", 0.25*(ChurnRatePerDay*0.0124275674)*B6) -> 0 | H32: =_xlfn.IFS(B16="Premium Blobs", 2.5*(ChurnRatePerDay*0.0124275674)*B6, B16="Standard General Purpose v2 (SGPv2)", 11.25*(ChurnRatePerDay*0.0124275674)*B6, B16="Standard General Purpose v1 (SGPv1)", 0.25*(ChurnRatePerDay*0.0124275674)*B6) -> 0 | I32: =_xlfn.IFS(B16="Premium Blobs", 2.5*(ChurnRatePerDay*0.0124275674)*B6, B16="Standard General Purpose v2 (SGPv2)", 11.25*(ChurnRatePerDay*0.0124275674)*B6, B16="Standard General Purpose v1 (SGPv1)", 0.25*(ChurnRatePerDay*0.0124275674)*B6) -> 0 | J32: =_xlfn.IFS(B16="Premium Blobs", 2.5*(ChurnRatePerDay*0.0124275674)*B6, B16="Standard General Purpose v2 (SGPv2)", 11.25*(ChurnRatePerDay*0.0124275674)*B6, B16="Standard General Purpose v1 (SGPv1)", 0.25*(ChurnRatePerDay*0.0124275674)*B6) -> 0 | K32: =_xlfn.IFS(B16="Premium Blobs", 2.5*(ChurnRatePerDay*0.0124275674)*B6, B16="Standard General Purpose v2 (SGPv2)", 11.25*(ChurnRatePerDay*0.0124275674)*B6, B16="Standard General Purpose v1 (SGPv1)", 0.25*(ChurnRatePerDay*0.0124275674)*B6) -> 0 | L32: =_xlfn.IFS(B16="Premium Blobs", 2.5*(ChurnRatePerDay*0.0124275674)*B6, B16="Standard General Purpose v2 (SGPv2)", 11.25*(ChurnRatePerDay*0.0124275674)*B6, B16="Standard General Purpose v1 (SGPv1)", 0.25*(ChurnRatePerDay*0.0124275674)*B6) -> 0 | M32: =_xlfn.IFS(B16="Premium Blobs", 2.5*(ChurnRatePerDay*0.0124275674)*B6, B16="Standard General Purpose v2 (SGPv2)", 11.25*(ChurnRatePerDay*0.0124275674)*B6, B16="Standard General Purpose v1 (SGPv1)", 0.25*(ChurnRatePerDay*0.0124275674)*B6) -> 0
A33: Temporary Source Disk (Charged only during Initial Replication) | B33: =IF(OR(B10="Standard HDD Managed Disks",B10="Standard SSD Managed Disks",B10="Premium SSD Managed Disks"),(((B7*B6+B9*B4)/1000)*6)*(B12*B6)/(30*24),"") -> 0
A34: Capacity Reservation | B34: =$B$23 -> 0 | C34: =$B$23 -> 0 | D34: 0 | E34: 0 | F34: 0 | G34: 0 | H34: 0 | I34: 0 | J34: 0 | K34: 0 | L34: 0 | M34: 0
A35: Total Cost | B35: =SUM(B27:B32) -> 0 | C35: =SUM(C27:C32) -> 0 | D35: =SUM(D27:D32) -> 0 | E35: 0 | F35: 0 | G35: 0 | H35: =SUM(H27:H32) -> 0 | I35: =SUM(H27:H32) -> 0 | J35: =SUM(H27:H32) -> 0 | K35: =SUM(H27:H32) -> 0 | L35: =SUM(H27:H32) -> 0 | M35: =SUM(H27:H32) -> 0

Sheet EASTUS DISKS (hidden)
A1: Pv1 Disks | B1: Disk Size (in GiB) | C1: Price per month | H1: Standard HDD Disks | I1: Disk Size in GiB | J1: Price per month | O1: Standard SSD Disks | P1: Disk Size | Q1: Price per month
A2: P1 | B2: 4 | C2: 0.6 | H2: S4 | I2: 32 | J2: 1.54 | O2: E1 | P2: 4 | Q2: 0.3
A3: P2 | B3: 8 | C3: 1.2 | H3: S6 | I3: 64 | J3: 3.01 | O3: E2 | P3: 8 | Q3: 0.6
A4: P3 | B4: 16 | C4: 2.4 | H4: S10 | I4: 128 | J4: 5.89 | O4: E3 | P4: 16 | Q4: 1.2
A5: P4 | B5: 32 | C5: 5.28 | H5: S15 | I5: 256 | J5: 11.33 | O5: E4 | P5: 32 | Q5: 2.4
A6: P6 | B6: 64 | C6: 10.21 | H6: S20 | I6: 512 | J6: 21.76 | O6: E6 | P6: 64 | Q6: 4.8
A7: P10 | B7: 128 | C7: 19.71 | H7: S30 | I7: 1024 | J7: 40.96 | O7: E10 | P7: 128 | Q7: 9.6
A8: P15 | B8: 256 | C8: 38.02 | H8: S40 | I8: 2048 | J8: 77.83 | O8: E15 | P8: 256 | Q8: 19.2
A9: P20 | B9: 512 | C9: 73.22 | H9: S50 | I9: 4096 | J9: 143.36 | O9: E20 | P9: 512 | Q9: 38.4
A10: P30 | B10: 1024 | C10: 135.17 | H10: S60 | I10: 8192 | J10: 262.14 | O10: E30 | P10: 1024 | Q10: 76.8
A11: P40 | B11: 2048 | C11: 259.05 | H11: S70 | I11: 16384 | J11: 491.52 | O11: E40 | P11: 2048 | Q11: 153.6
A12: P50 | B12: 4096 | C12: 495.57 | H12: S80 | I12: 32768 | J12: 953.55 | O12: E50 | P12: 4096 | Q12: 307.2
A13: P60 | B13: 8192 | C13: 946.08 | O13: E60 | P13: 8192 | Q13: 614.4
A14: P70 | B14: 16384 | C14: 1802.06 | O14: E70 | P14: 16384 | Q14: 1228.8
A15: P80 | B15: 32768 | C15: 3604.11 | O15: E80 | P15: 32768 | Q15: 2457.6

Sheet WESTUS DISKS (hidden)
A1: Pv1 Disks | B1: Disk Size (in GiB) | C1: Price per month | H1: Standard HDD Disks | I1: Disk Size in GiB | J1: Price per month | O1: Standard SSD Disks | P1: Disk Size in GiB | Q1: Price per month
A2: P1 | B2: 4 | C2: 0.78 | H2: S4 | I2: 32 | J2: 1.54 | O2: E1 | P2: 4 | Q2: 0.3
A3: P2 | B3: 8 | C3: 1.56 | H3: S6 | I3: 64 | J3: 3.01 | O3: E2 | P3: 8 | Q3: 0.6
A4: P3 | B4: 16 | C4: 3.12 | H4: S10 | I4: 128 | J4: 5.89 | O4: E3 | P4: 16 | Q4: 1.2
A5: P4 | B5: 32 | C5: 5.28 | H5: S15 | I5: 256 | J5: 11.33 | O5: E4 | P5: 32 | Q5: 2.4
A6: P6 | B6: 64 | C6: 10.21 | H6: S20 | I6: 512 | J6: 21.76 | O6: E6 | P6: 64 | Q6: 4.8
A7: P10 | B7: 128 | C7: 19.71 | H7: S30 | I7: 1024 | J7: 40.96 | O7: E10 | P7: 128 | Q7: 9.6
A8: P15 | B8: 256 | C8: 38.02 | H8: S40 | I8: 2048 | J8: 81.92 | O8: E15 | P8: 256 | Q8: 19.2
A9: P20 | B9: 512 | C9: 73.22 | H9: S50 | I9: 4096 | J9: 163.84 | O9: E20 | P9: 512 | Q9: 38.4
A10: P30 | B10: 1024 | C10: 135.17 | H10: S60 | I10: 8192 | J10: 327.68 | O10: E30 | P10: 1024 | Q10: 76.8
A11: P40 | B11: 2048 | C11: 259.05 | H11: S70 | I11: 16384 | J11: 655.36 | O11: E40 | P11: 2048 | Q11: 153.6
A12: P50 | B12: 4096 | C12: 495.57 | H12: S80 | I12: 32768 | J12: 1310.72 | O12: E50 | P12: 4096 | Q12: 307.2
A13: P60 | B13: 8192 | C13: 946.08 | O13: E60 | P13: 8192 | Q13: 614.4
A14: P70 | B14: 16384 | C14: 1802.06 | O14: E70 | P14: 16384 | Q14: 1228.8
A15: P80 | B15: 32768 | C15: 3604.11 | O15: E80 | P15: 32768 | Q15: 2457.6
B17: Pv1 | I17: Standard HDD | O17: Standard SSD

Sheet A2A Sheet Formulas (hidden)
A1: Cost Components of A2A ASR | B1: Formulas
A2: Total Protected Instance Fee | B2: Flat PI fee ($)* Number of VMs
A3: ASR Source Snapshot Fee | B3: IF DiskType= Standard SSD/HDD Managed Disks then ASR Source Snapshot fee cost = Standard Snapshot fee($)*12 bookmarks*(ChurnRatePerHour) IF DiskType= Premium SSD Managed Disks then ASR Source Snapshot fee cost = Premium Snapshot fee*12 bookmarks*(ChurnRatePerHour) If DiskType=Premium SSDv2 Managed Disks then ASR Source Snapshot fee cost=Premium Snapshot fee*(Total size of filled data disk)
A4: ASR Target Snapshot Fee | B4: Monthly Cost=For Premium and Standard disks, respective type of monthly snapshot fee*churn rate per day*number of retention days
A5: ASR Replica Disk | B5: Target disk cost
A6: Egress | B6: Initial Replication=Percent of data disk filled in GiB*Total no. of disks*egress cost Monthly Replication=Churn per day*Egress per GB cost
A7: Cache Storage Account | B7: For monthly cost below logic is used: GPv1 page blobs: ~0.25*Churn Rate MBps*Number of disks USD GPv2 page blobs: ~ 11.25*Churn Rate MBps*Number of disks USD Premium block blobs: ~2.5*Churn Rate MBps*Number of disks USD
A8: Temporary Disk | B8: Source data disk size charged at source disk SKU pricing*number of hours IR takes which is disk size in Tb*6
A9: Capacity Reservation | B9: Input from customer

Sheet A2A Retention Days (hidden)
A1: Number of Retention Days | B1: Standard Snapshot Cost | C1: Premium Snapshot Cost
A2: 0 | B2: 0 | C2: 0
A3: 1 | B3: =ChurnRatePerDay*'A2A (East US to West US)'!$B$19*A3 -> 0.045 | C3: =ChurnRatePerDay*'A2A (East US to West US)'!$B$20*A3 -> 0.132
A4: 2 | B4: =ChurnRatePerDay*'A2A (East US to West US)'!$B$19*A4 -> 0.09 | C4: =ChurnRatePerDay*'A2A (East US to West US)'!$B$20*A4 -> 0.264
A5: 3 | B5: =ChurnRatePerDay*'A2A (East US to West US)'!$B$19*A5 -> 0.135 | C5: =ChurnRatePerDay*'A2A (East US to West US)'!$B$20*A5 -> 0.396
A6: 4 | B6: =ChurnRatePerDay*'A2A (East US to West US)'!$B$19*A6 -> 0.18 | C6: =ChurnRatePerDay*'A2A (East US to West US)'!$B$20*A6 -> 0.528
A7: 5 | B7: =ChurnRatePerDay*'A2A (East US to West US)'!$B$19*A7 -> 0.225 | C7: =ChurnRatePerDay*'A2A (East US to West US)'!$B$20*A7 -> 0.66
A8: 6 | B8: =ChurnRatePerDay*'A2A (East US to West US)'!$B$19*A8 -> 0.27 | C8: =ChurnRatePerDay*'A2A (East US to West US)'!$B$20*A8 -> 0.792
A9: 7 | B9: =ChurnRatePerDay*'A2A (East US to West US)'!$B$19*A9 -> 0.315 | C9: =ChurnRatePerDay*'A2A (East US to West US)'!$B$20*A9 -> 0.924
A10: 8 | B10: =ChurnRatePerDay*'A2A (East US to West US)'!$B$19*A10 -> 0.36 | C10: =ChurnRatePerDay*'A2A (East US to West US)'!$B$20*A10 -> 1.056
A11: 9 | B11: =ChurnRatePerDay*'A2A (East US to West US)'!$B$19*A11 -> 0.405 | C11: =ChurnRatePerDay*'A2A (East US to West US)'!$B$20*A11 -> 1.188
A12: 10 | B12: =ChurnRatePerDay*'A2A (East US to West US)'!$B$19*A12 -> 0.45 | C12: =ChurnRatePerDay*'A2A (East US to West US)'!$B$20*A12 -> 1.32
A13: 11 | B13: =ChurnRatePerDay*'A2A (East US to West US)'!$B$19*A13 -> 0.495 | C13: =ChurnRatePerDay*'A2A (East US to West US)'!$B$20*A13 -> 1.452
A14: 12 | B14: =ChurnRatePerDay*'A2A (East US to West US)'!$B$19*A14 -> 0.54 | C14: =ChurnRatePerDay*'A2A (East US to West US)'!$B$20*A14 -> 1.584
A15: 13 | B15: =ChurnRatePerDay*'A2A (East US to West US)'!$B$19*A15 -> 0.585 | C15: =ChurnRatePerDay*'A2A (East US to West US)'!$B$20*A15 -> 1.716
A16: 14 | B16: =ChurnRatePerDay*'A2A (East US to West US)'!$B$19*A16 -> 0.63 | C16: =ChurnRatePerDay*'A2A (East US to West US)'!$B$20*A16 -> 1.848
A17: 15 | B17: =ChurnRatePerDay*'A2A (East US to West US)'!$B$19*A17 -> 0.675 | C17: =ChurnRatePerDay*'A2A (East US to West US)'!$B$20*A17 -> 1.98

Sheet V2A (hidden)

Sheet H2A (hidden)
